bitfinex/quotes_SOLUSD_20250421
["timestamp","ask_amount","ask_price","bid_price","bid_amount"]
[1745223986369,0.14216157,140.36,140.31,13.96]
[1745223986743,18.67964886,140.37,140.31,13.96]
[1745224002978,44.67964886,140.37,140.31,13.96]
[1745224004379,44.67964886,140.37,140.32,13.96]
[1745224007280,26.03,140.37,140.32,13.96]
[1745224009180,26.03,140.37,140.33,13.96]
[1745224011984,18.64964886,140.36,140.33,13.96]
[1745224016965,26.0,140.34,140.33,13.96]
[1745224022184,18.64964886,140.35,140.33,13.96]
[1745224023080,26.0,140.36,140.33,13.96]
[1745224024596,0.03,140.37,140.33,13.96]
[1745224025779,0.03,140.37,140.33,15.5392]
[1745224034396,0.03,140.37,140.33,259.5592]
[1745224035001,18.64964886,140.41,140.33,259.5592]
[1745224035491,26.0,140.42,140.33,259.5592]
[1745224042695,26.0,140.42,140.34,0.14216157]
[1745224045907,80.83,140.43,140.36,27.6531]
[1745224046709,0.03,140.43,140.38,7.9698]
[1745224046913,0.03,140.43,140.39,13.94]
[1745224048415,0.01177258,140.43,140.39,13.94]
[1745224050405,0.01177258,140.43,140.39,39.94]
[1745224057410,0.01177258,140.43,140.4,243.9]
[1745224071720,0.01177258,140.43,140.4,247.38905783]
[1745224076728,0.01177258,140.43,140.41,13.94]
[1745224082514,0.01177258,140.43,140.42,26.0]
[1745224085912,0.01177258,140.43,140.42,0.14216157]
[1745224086114,0.01177258,140.43,140.42,20.38481043]
[1745224087036,0.01177258,140.43,140.42,26.63471043]
[1745224087753,0.03,140.46,140.45,26.0]
[1745224087926,1.132511,140.47,140.45,26.0]
[1745224088239,1.132511,140.47,140.46,13.94]
[1745224093053,1.132511,140.47,140.46,257.74]
[1745224103261,1.132511,140.47,140.46,257.88216157]
[1745224104253,1.132511,140.47,140.46,257.74]
[1745224112256,1.132511,140.47,140.46,13.94]
[1745224142179,99.44964886,140.46,140.43,243.78]
[1745224142385,18.64964886,140.44,140.43,257.76]
[1745224145712,18.79181043,140.44,140.43,257.76]
[1745224146617,18.79181043,140.44,140.43,13.98]
[1745224147711,18.64964886,140.44,140.43,13.98]
[1745224147892,18.79181043,140.44,140.43,13.98]
[1745224154026,18.79181043,140.41,140.4,0.063]
[1745224154913,67.15181043,140.41,140.4,0.063]
[1745224155087,68.79901043,140.41,140.4,0.063]
[1745224156122,49.92101028,140.41,140.4,0.063]
[1745224156911,92.63101028,140.41,140.4,0.063]
[1745224158608,96.12044914,140.41,140.4,0.063]
[1745224159903,44.64964886,140.37,140.36,13.98]
[1745224166218,66.00964886,140.37,140.36,13.98]
[1745224166419,44.64964886,140.37,140.36,13.98]
[1745224172220,66.15181043,140.37,140.36,13.98]
[1745224173024,73.27583978,140.37,140.36,13.98]
[1745224173229,40.15181043,140.36,140.34,0.063]
[1745224174436,47.27685496,140.35,140.34,0.063]
[1745224174610,48.27685496,140.35,140.34,0.063]
[1745224175333,47.27685496,140.35,140.34,0.063]
[1745224175832,48.27685496,140.35,140.34,0.063]
[1745224176433,18.79181043,140.34,140.33,14.003]
[1745224176727,40.15181043,140.34,140.33,14.003]
[1745224178440,47.27736266,140.34,140.33,14.003]
[1745224178818,67.15181043,140.32,140.31,0.063]
[1745224179018,44.79181043,140.29,140.27,14.003]
[1745224180537,26.10171043,140.28,140.18,1.584]
[1745224180714,44.79181043,140.22,140.18,0.063]
[1745224184214,18.64964886,140.22,140.18,14.023]
[1745224184812,18.79181043,140.22,140.18,14.023]
[1745224188354,18.64964886,140.22,140.18,14.023]
[1745224202167,80.8,140.23,140.18,20.5868]
[1745224212974,54.44655476,140.19,140.18,0.063]
[1745224213359,53.44655476,140.19,140.18,0.063]
[1745224213861,54.44655476,140.19,140.18,0.063]
[1745224214083,97.15655476,140.19,140.18,0.063]
[1745224214574,99.6747128,140.19,140.18,0.063]
[1745224214769,100.6747128,140.19,140.18,0.063]
[1745224215855,154.02249569,140.18,140.17,0.063]
[1745224216271,135.18406362,140.18,140.17,0.063]
[1745224218183,134.18406362,140.18,140.17,0.063]
[1745224218384,135.18406362,140.18,140.17,0.063]
[1745224219982,146.62064886,140.16,140.15,0.063]
[1745224220167,146.76281043,140.16,140.15,0.063]
[1745224220368,121.76281043,140.16,140.15,0.063]
[1745224220568,126.92437836,140.16,140.15,0.063]
[1745224220788,127.92437836,140.16,140.15,0.063]
[1745224221082,134.05908155,140.16,140.15,0.063]
[1745224221281,135.05908155,140.16,140.15,0.063]
[1745224222080,152.92437836,140.16,140.15,0.063]
[1745224222470,72.17121679,140.16,140.15,0.063]
[1745224222973,72.31337836,140.16,140.15,0.063]
[1745224228679,103.18438155,140.16,140.15,0.063]
[1745224229071,102.18438155,140.16,140.15,0.063]
[1745224229282,103.18438155,140.16,140.15,0.063]
[1745224229480,102.18438155,140.16,140.15,0.063]
[1745224229680,103.18438155,140.16,140.15,0.063]
[1745224231369,18.64964886,140.12,140.1,0.063]
[1745224231696,66.15181043,140.12,140.1,0.063]
[1745224234769,66.18181043,140.12,140.1,0.063]
[1745224235987,47.31855036,140.12,140.1,0.063]
[1745224236293,90.02855036,140.12,140.1,0.063]
[1745224238974,95.87852684,140.12,140.1,0.063]
[1745224239977,146.91881043,140.11,140.1,0.063]
[1745224240373,125.38664886,140.11,140.1,0.063]
[1745224240591,125.52881043,140.11,140.1,0.063]
[1745224241678,146.91881043,140.11,140.1,0.063]
[1745224242275,128.05605973,140.11,140.1,0.063]
[1745224242477,135.21762766,140.11,140.1,0.063]
[1745224242780,135.21762766,140.11,140.09,0.03]
[1745224242781,83.96181043,140.1,140.09,0.03]
[1745224242995,106.10792127,140.1,140.09,0.03]
[1745224243195,26.14216157,140.07,140.06,0.063]
[1745224243395,109.96181043,140.07,140.06,0.063]
[1745224243580,116.12337836,140.07,140.06,0.063]
[1745224244307,44.79181043,140.04,140.0,7.8998]
[1745224244599,0.14216157,140.01,140.0,7.8998]
[1745224247405,18.64964886,140.02,140.0,7.8998]
[1745224248096,80.644,140.03,140.0,7.8998]
[1745224253208,18.64964886,140.07,140.0,33.8998]
[1745224254888,0.14216157,140.06,140.0,7.8998]
[1745224256114,0.14216157,140.03,140.0,7.8998]
[1745224256316,18.64964886,140.01,140.0,1.6234]
[1745224257395,80.644,140.02,140.0,1.6234]
[1745224259714,80.644,140.06,140.04,1.537]
[1745224260092,18.64964886,140.09,140.04,1.537]
[1745224260414,18.64964886,140.07,140.04,1.537]
[1745224262800,80.644,140.08,140.04,1.537]
[1745224264158,0.063,140.11,140.06,26.0]
[1745224264292,18.71264886,140.11,140.06,26.0]
[1745224264617,18.64964886,140.09,140.04,1.537]
[1745224265191,80.78616157,140.08,140.04,1.537]
[1745224265396,44.79181043,140.05,140.04,15.517]
[1745224265792,44.64964886,140.05,140.04,15.517]
[1745224266420,44.79181043,140.05,140.04,15.517]
[1745224266713,18.79181043,140.05,140.04,13.98]
[1745224267920,44.79181043,140.05,140.04,13.98]
[1745224268312,18.79181043,140.04,140.0,15.6455]
[1745224270720,18.79181043,140.04,140.0,14.01]
[1745224271024,0.14216157,140.01,140.0,14.01]
[1745224279157,18.64964886,140.02,140.0,14.01]
[1745224280135,80.8,140.03,140.0,14.01]
[1745224280320,80.8,140.03,140.0,20.4086]
[1745224281217,18.64964886,140.02,140.0,14.01]
[1745224285631,80.94216157,140.03,140.0,14.01]
[1745224285632,80.8,140.03,140.0,14.01]
[1745224288452,18.64964886,140.02,140.0,14.01]
[1745224293066,80.94216157,140.01,140.0,14.01]
[1745224293245,80.8,140.01,140.0,14.01]
[1745224293438,80.94216157,140.01,140.0,14.01]
[1745224295352,80.8,140.01,140.0,14.01]
[1745224295549,125.44964886,140.01,140.0,14.01]
[1745224296456,106.8,140.01,140.0,14.01]
[1745224296661,26.0,140.03,140.0,14.01]
[1745224297041,80.8,140.04,140.0,14.01]
[1745224297552,106.8,140.04,140.0,14.01]
[1745224297860,18.64964886,140.07,140.01,1.5315]
[1745224298262,80.8,140.08,140.02,6.4953]
[1745224307869,80.8,140.08,140.03,1.5315]
[1745224316777,80.8,140.08,140.04,13.96]
[1745224317984,0.063,140.11,140.04,13.96]
[1745224324786,0.063,140.11,140.03,27.5315]
[1745224324787,0.14216157,140.1,140.05,13.96]
[1745224325166,18.64964886,140.09,140.05,13.96]
[1745224326284,18.64964886,140.07,140.05,13.96]
[1745224327184,0.14216157,140.04,140.0,0.03]
[1745224327389,18.64964886,140.02,140.0,0.03]
[1745224328579,80.8,140.03,140.0,0.03]
[1745224329586,80.8,140.06,140.0,0.03]
[1745224330991,18.64964886,140.05,140.0,0.03]
[1745224332680,0.14216157,140.04,140.0,0.03]
[1745224334995,18.64964886,140.02,140.0,0.03]
[1745224335497,80.94216157,140.01,140.0,0.03]
[1745224335670,18.79181043,140.01,140.0,0.03]
[1745224338011,51.9341574,140.01,140.0,0.03]
[1745224338295,51.40531043,140.01,140.0,0.03]
[1745224339178,18.79181043,140.01,140.0,0.03]
[1745224339477,18.64964886,140.01,140.0,0.03]
[1745224340701,18.64964886,140.04,140.0,0.03]
[1745224340907,0.14216157,140.03,140.0,0.03]
[1745224342507,32.6135,140.05,140.0,0.03]
[1745224342508,0.14216157,140.05,140.0,0.03]
[1745224342803,18.64964886,140.06,140.0,0.03]
[1745224342972,0.14216157,140.05,140.0,0.03]
[1745224344791,80.8,140.03,140.0,0.03]
[1745224349685,99.59181043,140.06,140.01,1.6355]
[1745224349904,99.59181043,140.06,140.02,13.98]
[1745224350908,99.44964886,140.06,140.02,13.98]
[1745224354108,80.94216157,140.05,140.02,13.98]
[1745224356915,18.64964886,140.03,140.02,13.98]
[1745224367622,18.79181043,140.03,140.02,13.98]
[1745224371326,0.14216157,140.03,140.02,13.98]
[1745224380540,18.64964886,140.05,140.02,13.98]
[1745224381112,0.14216157,140.04,140.02,13.98]
[1745224382435,18.64964886,140.05,140.02,13.98]
[1745224382731,0.14216157,140.04,140.02,13.98]
[1745224385114,6.0711,140.09,140.02,13.98]
[1745224385320,18.64964886,140.09,140.02,13.98]
[1745224385513,44.64964886,140.09,140.02,15.5404]
[1745224385834,0.14216157,140.08,140.02,15.5404]
[1745224386244,44.64964886,140.09,140.02,15.5404]
[1745224387020,0.14216157,140.08,140.02,15.5404]
[1745224388226,18.79181043,140.05,140.02,13.98]
[1745224388435,80.8,140.04,140.02,13.98]
[1745224393331,18.64964886,140.09,140.02,20.5789]
[1745224393645,18.64964886,140.09,140.03,1.5604]
[1745224397228,0.063,140.11,140.06,6.5989]
[1745224397427,0.063,140.12,140.1,26.0]
[1745224398044,0.063,140.12,140.1,38.41442109]
[1745224398356,0.063,140.12,140.11,6.5989]
[1745224404070,0.063,140.13,140.12,1.6559]
[1745224404365,0.063,140.13,140.12,41.6159]
[1745224412474,0.063,140.13,140.12,27.6559]
[1745224412646,0.063,140.13,140.12,14.02]
[1745224416064,0.063,140.13,140.11,244.4]
[1745224416376,0.063,140.13,140.12,14.02]
[1745224418274,18.85481043,140.13,140.12,14.02]
[1745224419075,0.063,140.13,140.11,244.4]
[1745224419387,0.063,140.13,140.12,14.02]
[1745224440885,0.063,140.13,140.12,258.36]
[1745224442286,0.063,140.13,140.12,277.00964886]
[1745224450680,0.063,140.13,140.12,258.36]
[1745224451801,0.063,140.13,140.12,244.34]
[1745224451978,0.063,140.13,140.12,258.32]
[1745224452680,0.063,140.13,140.12,284.32]
[1745224453195,0.063,140.13,140.12,258.32]
[1745224453576,0.063,140.13,140.12,284.32]
[1745224454407,0.063,140.13,140.12,258.32]
[1745224454575,0.063,140.13,140.12,314.76789819]
[1745224456297,0.063,140.13,140.12,288.76789819]
[1745224457697,0.063,140.13,140.12,288.62573662]
[1745224457995,0.063,140.13,140.12,258.32]
[1745224461005,0.063,140.13,140.12,276.96964886]
[1745224462081,0.063,140.13,140.12,288.76789819]
[1745224462280,0.063,140.13,140.12,289.76789819]
[1745224462483,0.063,140.13,140.12,288.76789819]
[1745224462785,0.063,140.13,140.12,276.96964886]
[1745224469899,0.063,140.13,140.12,277.11181043]
[1745224470820,0.063,140.13,140.12,278.11181043]
[1745224470999,0.063,140.13,140.12,277.11181043]
[1745224471208,0.063,140.13,140.12,278.11181043]
[1745224472516,0.063,140.13,140.12,277.11181043]
[1745224473315,0.063,140.13,140.12,276.96964886]
[1745224473518,0.063,140.13,140.12,284.32]
[1745224473820,0.00389305,140.14,140.12,258.34]
[1745224474210,0.00389305,140.14,140.12,284.34]
[1745224478822,0.00389305,140.14,140.13,19.79181043]
[1745224479131,0.063,140.17,140.16,44.64964886]
[1745224480128,0.063,140.17,140.16,26.0]
[1745224480302,0.063,140.17,140.16,40.0]
[1745224481425,0.00975767,140.17,140.16,40.0]
[1745224482523,0.00975767,140.17,140.16,14.0]
[1745224489712,0.00975767,140.17,140.12,244.34]
[1745224489913,0.00975767,140.17,140.13,14.0]
[1745224501742,26.0,140.16,140.13,14.0]
[1745224504255,0.00975767,140.17,140.13,14.0]
[1745224521058,0.00975767,140.17,140.14,13.96]
[1745224524441,0.00975767,140.17,140.14,39.96]
[1745224527662,0.00975767,140.17,140.12,244.34]
[1745224527963,0.00975767,140.17,140.15,13.96]
[1745224538145,0.00975767,140.17,140.16,13.96]
[1745224550478,0.14216157,140.16,140.13,13.96]
[1745224551893,5.32806796,140.15,140.13,13.96]
[1745224552962,5.32806796,140.14,140.13,13.96]
[1745224553779,0.14216157,140.16,140.13,13.96]
[1745224558267,80.80975767,140.17,140.13,13.96]
[1745224559564,80.80975767,140.17,140.13,15.5478]
[1745224560768,0.00975767,140.17,140.13,15.5478]
[1745224568289,0.00975767,140.17,140.13,15.5478]
[1745224570788,0.00975767,140.17,140.14,13.96]
[1745224572179,26.00975767,140.17,140.14,13.96]
[1745224576786,26.00975767,140.17,140.12,244.4]
[1745224576787,0.14216157,140.16,140.12,244.4]
[1745224576980,0.14216157,140.16,140.13,13.96]
[1745224582197,80.8,140.15,140.13,13.96]
[1745224582490,0.14216157,140.14,140.13,13.96]
[1745224584703,18.79181043,140.14,140.13,13.96]
[1745224584907,44.79181043,140.14,140.13,13.96]
[1745224590205,26.14216157,140.14,140.13,13.96]
[1745224595709,0.15191924,140.17,140.13,13.96]
[1745224595889,18.64964886,140.16,140.13,13.96]
[1745224598107,0.14216157,140.15,140.13,13.96]
[1745224598410,0.14216157,140.15,140.12,13.96]
[1745224599901,80.8,140.13,140.12,13.96]
[1745224609516,18.79181043,140.13,140.12,13.96]
[1745224610406,40.17181043,140.13,140.12,13.96]
[1745224610910,0.14216157,140.08,140.07,0.03]
[1745224611217,18.79181043,140.08,140.07,0.03]
[1745224618437,26.0,140.1,140.07,0.03]
[1745224618728,40.02964886,140.12,140.07,0.03]
[1745224618925,18.64964886,140.1,140.07,0.03]
[1745224619126,0.14216157,140.1,140.07,0.03]
[1745224619457,21.38975767,140.17,140.08,1.63]
[1745224619838,26.0,140.14,140.08,1.63]
[1745224620026,18.64964886,140.13,140.08,1.63]
[1745224620334,21.38,140.15,140.08,1.63]
[1745224620541,18.64964886,140.14,140.08,1.63]
[1745224620742,0.14216157,140.13,140.08,1.63]
[1745224621350,40.17181043,140.16,140.08,1.63]
[1745224621537,18.79181043,140.14,140.08,1.63]
[1745224621739,26.0,140.15,140.08,1.63]
[1745224622133,0.14216157,140.13,140.08,1.63]
[1745224623048,80.8,140.12,140.07,0.03]
[1745224623433,18.79181043,140.11,140.07,0.03]
[1745224623635,0.14216157,140.09,140.07,0.03]
[1745224625430,18.79181043,140.09,140.07,0.03]
[1745224625631,80.8,140.08,140.07,0.03]
[1745224628345,80.94216157,140.08,140.07,0.03]
[1745224628833,80.8,140.11,140.07,0.03]
[1745224629244,0.14216157,140.1,140.07,0.03]
[1745224630731,18.79181043,140.1,140.07,0.03]
[1745224631747,80.8,140.09,140.07,0.03]
[1745224638939,0.14216157,140.08,140.07,0.03]
[1745224642473,80.8,140.09,140.07,0.03]
[1745224643961,0.663449,140.08,140.07,0.03]
[1745224661181,0.663449,140.08,140.07,27.5641]
[1745224662763,0.663449,140.08,140.07,1.5641]
[1745224676800,0.663449,140.08,140.07,46.21374886]
[1745224677017,0.663449,140.08,140.07,20.21374886]
[1745224677314,0.663449,140.08,140.07,20.35591043]
[1745224678112,0.00975767,140.17,140.07,20.35591043]
[1745224678113,0.00975767,140.17,140.11,44.64964886]
[1745224678305,0.00975767,140.17,140.12,15.5697]
[1745224681417,0.00975767,140.17,140.12,13.96]
[1745224688241,0.00975767,140.17,140.15,26.0]
[1745224693044,0.00975767,140.17,140.16,44.64964886]
[1745224694719,0.00975767,140.17,140.16,127.91804656]
[1745224694920,0.00975767,140.17,140.16,133.95944656]
[1745224697252,0.063,140.18,140.17,19.64964886]
[1745224697545,0.063,140.18,140.17,33.58964886]
[1745224699649,0.063,140.18,140.17,14.94]
[1745224700742,0.063,140.18,140.17,32.58964886]
[1745224700922,0.063,140.18,140.17,33.58964886]
[1745224702038,0.063,140.18,140.17,32.73181043]
[1745224702232,0.063,140.18,140.17,32.58964886]
[1745224703127,0.063,140.18,140.17,13.94]
[1745224703522,0.063,140.18,140.17,39.94]
[1745224704622,0.063,140.18,140.17,284.2]
[1745224707346,0.063,140.18,140.17,302.84964886]
[1745224707654,0.063,140.18,140.17,276.84964886]
[1745224709648,0.063,140.18,140.17,276.99181043]
[1745224709859,0.063,140.18,140.17,277.99181043]
[1745224710151,0.063,140.18,140.17,290.00063152]
[1745224710530,0.063,140.18,140.17,296.40403152]
[1745224711828,0.063,140.18,140.17,276.84964886]
[1745224718673,0.063,140.18,140.17,276.99181043]
[1745224718979,0.063,140.18,140.17,277.99181043]
[1745224719574,0.063,140.18,140.17,276.99181043]
[1745224719777,0.063,140.18,140.17,277.99181043]
[1745224720176,0.063,140.18,140.17,358.69181043]
[1745224724370,0.063,140.18,140.17,369.18223152]
[1745224724674,0.063,140.18,140.17,380.34815146]
[1745224726676,0.063,140.19,140.18,19.79181043]
[1745224726870,0.063,140.19,140.18,101.91755052]
[1745224727058,0.063,140.19,140.18,100.91755052]
[1745224727260,0.063,140.19,140.18,101.91755052]
[1745224728779,0.063,140.19,140.18,20.07538895]
[1745224728992,0.063,140.19,140.18,18.64964886]
[1745224739585,0.063,140.19,140.18,32.58964886]
[1745224744284,0.063,140.19,140.18,276.78964886]
[1745224752277,0.063,140.19,140.18,258.14]
[1745224752695,6.2858,140.19,140.18,258.14]
[1745224752897,6.42796157,140.19,140.18,248.6546]
[1745224753101,6.42796157,140.19,140.18,241.925]
[1745224753282,6.42796157,140.19,140.18,13.94]
[1745224753606,18.79181043,140.18,140.16,13.94]
[1745224753904,18.79181043,140.18,140.15,13.94]
[1745224754076,18.79181043,140.18,140.12,13.94]
[1745224754077,5.0208,140.15,140.12,13.94]
[1745224755883,5.0208,140.15,140.12,13.97]
[1745224764008,85.8208,140.15,140.12,13.97]
[1745224766211,107.2008,140.15,140.12,13.97]
[1745224766405,85.8208,140.15,140.12,13.97]
[1745224768203,26.0,140.13,140.12,13.97]
[1745224772310,0.14216157,140.14,140.12,13.97]
[1745224775814,0.14216157,140.14,140.12,0.03]
[1745224787430,80.8,140.15,140.12,0.03]
[1745224791232,0.14216157,140.14,140.12,0.03]
[1745224791533,80.8,140.15,140.12,0.03]
[1745224791712,0.14216157,140.14,140.12,0.03]
[1745224792511,18.79181043,140.14,140.12,0.03]
[1745224795432,99.59181043,140.13,140.12,0.03]
[1745224800424,125.59181043,140.13,140.12,0.03]
[1745224801536,47.30804107,140.13,140.12,0.03]
[1745224801836,48.30804107,140.13,140.12,0.03]
[1745224802215,44.64964886,140.1,140.07,13.99]
[1745224802417,0.14216157,140.09,140.07,13.99]
[1745224803540,0.14216157,140.09,140.07,0.03]
[1745224807825,18.79181043,140.08,140.07,0.03]
[1745224808024,0.14216157,140.08,140.07,0.03]
[1745224808642,18.64964886,140.09,140.07,0.03]
[1745224809145,0.14216157,140.08,140.07,0.03]
[1745224809334,26.0,140.1,140.07,0.03]
[1745224809335,26.0,140.11,140.07,0.03]
[1745224809651,11.05745336,140.15,140.08,13.96]
[1745224810238,0.14216157,140.14,140.08,13.96]
[1745224810548,11.05745336,140.15,140.08,13.96]
[1745224810741,11.05745336,140.18,140.08,13.96]
[1745224810942,18.79181043,140.17,140.08,13.96]
[1745224811247,44.79181043,140.17,140.08,13.96]
[1745224811453,44.64964886,140.17,140.08,13.96]
[1745224811825,18.64964886,140.17,140.08,13.96]
[1745224812246,0.14216157,140.16,140.08,13.96]
[1745224812426,80.8,140.14,140.08,13.96]
[1745224819455,0.14216157,140.13,140.08,13.96]
[1745224820061,18.79181043,140.13,140.08,13.96]
[1745224821563,0.14216157,140.13,140.08,13.96]
[1745224826655,80.8,140.14,140.08,13.96]
[1745224830259,0.14216157,140.13,140.08,13.96]
[1745224831768,80.8,140.14,140.08,13.96]
[1745224846256,0.14216157,140.16,140.08,13.96]
[1745224849374,18.79181043,140.16,140.08,13.96]
[1745224853482,0.14216157,140.16,140.08,13.96]
[1745224858087,0.14216157,140.14,140.08,13.96]
[1745224859684,26.0,140.15,140.08,13.96]
[1745224859986,0.14216157,140.14,140.08,13.96]
[1745224860390,26.0,140.15,140.08,13.96]
[1745224861579,0.14216157,140.14,140.08,13.96]
[1745224862372,26.0,140.1,140.08,13.96]
[1745224863192,0.14216157,140.09,140.08,13.96]
[1745224867295,0.14216157,140.11,140.08,13.96]
[1745224867595,80.8,140.12,140.08,13.96]
[1745224868181,0.14216157,140.11,140.08,13.96]
[1745224870088,18.79181043,140.11,140.08,13.96]
[1745224879008,0.14216157,140.11,140.08,13.96]
[1745224880210,18.79181043,140.11,140.08,13.96]
[1745224880803,18.79181043,140.11,140.07,0.03]
[1745224881500,0.14216157,140.11,140.07,0.03]
[1745224884405,18.79181043,140.11,140.07,0.03]
[1745224884710,44.79181043,140.09,140.07,0.03]
[1745224888930,26.14216157,140.09,140.07,0.03]
[1745224890511,26.0,140.09,140.07,0.03]
[1745224890717,80.8,140.1,140.07,0.03]
[1745224892332,18.79181043,140.15,140.07,0.03]
[1745224892529,0.14216157,140.11,140.07,0.03]
[1745224899038,0.14216157,140.11,140.07,0.03]
[1745224899539,18.79181043,140.11,140.07,0.03]
[1745224901944,99.59181043,140.11,140.07,0.03]
[1745224902836,18.79181043,140.09,140.07,0.03]
[1745224903931,0.14216157,140.09,140.07,0.03]
[1745224904941,80.8,140.1,140.07,0.03]
[1745224905139,0.14216157,140.09,140.07,0.03]
[1745224909054,26.0,140.12,140.07,0.03]
[1745224909227,26.0,140.12,140.08,1.5473]
[1745224909427,0.14216157,140.11,140.08,1.5473]
[1745224911026,80.8,140.13,140.08,1.5473]
[1745224922448,0.14216157,140.14,140.08,1.5473]
[1745224922958,18.79181043,140.15,140.08,1.5473]
[1745224923342,40.18181043,140.15,140.08,1.5473]
[1745224923538,0.14216157,140.11,140.07,0.03]
[1745224926143,80.8,140.14,140.07,0.03]
[1745224926337,5.3219272,140.1,140.08,7.6247]
[1745224927561,80.8,140.14,140.08,7.6247]
[1745224932662,26.0,140.11,140.08,7.6247]
[1745224933036,26.0,140.11,140.07,0.03]
[1745224935248,0.14216157,140.1,140.07,0.03]
[1745224936363,0.14216157,140.08,140.07,0.03]
[1745224940381,26.14216157,140.08,140.07,0.03]
[1745224941279,26.0,140.08,140.07,0.03]
[1745224945575,80.8,140.09,140.07,0.03]
[1745224946958,80.94216157,140.09,140.08,13.96]
[1745224947277,0.14216157,140.1,140.08,13.96]
[1745224949482,106.8,140.13,140.08,13.96]
[1745224949670,0.14216157,140.12,140.08,13.96]
[1745224949855,26.0,140.13,140.08,13.96]
[1745224950060,18.64964886,140.15,140.08,13.96]
[1745224950261,0.14216157,140.14,140.08,13.96]
[1745224950464,18.64964886,140.15,140.08,13.96]
[1745224950667,44.64964886,140.15,140.08,13.96]
[1745224951185,0.14216157,140.14,140.08,13.96]
[1745224956972,44.64964886,140.15,140.08,13.96]
[1745224957192,0.14216157,140.14,140.08,13.96]
[1745224977100,18.79181043,140.14,140.08,13.96]
[1745224977308,0.14216157,140.09,140.08,13.96]
[1745224982392,80.8,140.13,140.08,13.96]
[1745224982694,26.0,140.12,140.08,13.96]
[1745224983220,0.14216157,140.11,140.08,13.96]
[1745224994223,26.0,140.12,140.08,13.96]
[1745225001741,26.0,140.12,140.09,13.94]
[1745225001906,0.14216157,140.12,140.09,13.94]
[1745225009547,80.8,140.13,140.09,13.94]
[1745225010531,26.0,140.14,140.09,13.94]
[1745225022655,0.14216157,140.13,140.09,13.94]
[1745225023864,18.79181043,140.13,140.09,13.94]
[1745225024029,99.59181043,140.13,140.08,13.94]
[1745225025857,26.0,140.1,140.08,13.94]
[1745225026029,26.0,140.09,140.08,13.94]
[1745225027154,0.14216157,140.08,140.07,0.03]
[1745225027455,44.79181043,140.08,140.07,0.03]
[1745225036369,26.14216157,140.08,140.07,0.03]
[1745225036547,106.8,140.1,140.07,0.03]
[1745225036747,80.8,140.1,140.07,0.03]
[1745225037458,0.14216157,140.09,140.07,0.03]
[1745225037660,80.8,140.1,140.07,0.03]
[1745225038170,0.14216157,140.09,140.07,0.03]
[1745225046860,26.0,140.08,140.07,0.03]
[1745225047061,80.8,140.1,140.07,6.4661]
[1745225049753,80.8,140.1,140.08,13.94]
[1745225051381,26.0,140.11,140.08,13.94]
[1745225052962,0.14216157,140.12,140.08,13.94]
[1745225063395,26.0,140.13,140.08,13.94]
[1745225064089,80.8,140.14,140.08,13.94]
[1745225064267,0.14216157,140.13,140.08,13.94]
[1745225077404,80.8,140.14,140.08,13.94]